[Event "Late-Titled-Tuesday-Blitz-October-24-2023"]
[Site "Chess.com"]
[Date "2023.10.24"]
[Round "7"]
[White "dimitrisl"]
[Black "Mikhal867"]
[Result "1/2-1/2"]
[WhiteElo "2597"]
[BlackElo "2442"]
[TimeControl "180+1"]
[EndTime "15:16:23 PDT"]
[Termination "Game drawn - insufficient material"]

1. d4 {[%clk 0:02:59.6]} 1... Nf6 {[%clk 0:02:59.4]} 2. Nf3 {[%clk 0:02:59.7]}
2... g6 {[%clk 0:02:58.5]} 3. Bg5 {[%clk 0:03:00]} 3... Bg7 {[%clk 0:02:58.6]}
4. Nbd2 {[%clk 0:02:58.8]} 4... O-O {[%clk 0:02:58.4]} 5. c3 {[%clk 0:02:59.3]}
5... c5 {[%clk 0:02:56]} 6. dxc5 {[%clk 0:02:58.4]} 6... Qc7 {[%clk 0:02:55.9]}
7. Bxf6 {[%clk 0:02:55.1]} 7... Bxf6 {[%clk 0:02:53.7]} 8. Nb3 {[%clk
0:02:49.3]} 8... Na6 {[%clk 0:02:51]} 9. Qd5 {[%clk 0:02:44.8]} 9... e6 {[%clk
0:02:50.7]} 10. Qd6 {[%clk 0:02:32.4]} 10... Qd8 {[%clk 0:02:50.1]} 11. e3
{[%clk 0:02:23.6]} 11... Be7 {[%clk 0:02:49.4]} 12. Qd4 {[%clk 0:02:23.8]} 12...
Qc7 {[%clk 0:02:45.2]} 13. Bxa6 {[%clk 0:02:22.5]} 13... bxa6 {[%clk 0:02:45.5]}
14. O-O {[%clk 0:02:22.6]} 14... a5 {[%clk 0:02:43.6]} 15. Rfd1 {[%clk
0:02:19.9]} 15... Rb8 {[%clk 0:02:38.8]} 16. Rd2 {[%clk 0:02:12.1]} 16... Rd8
{[%clk 0:02:35.3]} 17. Qa4 {[%clk 0:02:09.7]} 17... Bb7 {[%clk 0:02:31.6]} 18.
Qxa5 {[%clk 0:02:09.4]} 18... Qxa5 {[%clk 0:02:10]} 19. Nxa5 {[%clk 0:02:10.3]}
19... Bxf3 {[%clk 0:02:09.7]} 20. gxf3 {[%clk 0:02:10.3]} 20... Bxc5 {[%clk
0:02:09.9]} 21. Rad1 {[%clk 0:02:08.8]} 21... Bb6 {[%clk 0:01:47.4]} 22. Nc4
{[%clk 0:01:59.5]} 22... d5 {[%clk 0:01:47]} 23. Nxb6 {[%clk 0:01:50.6]} 23...
Rxb6 {[%clk 0:01:45.6]} 24. e4 {[%clk 0:01:50.6]} 24... Rdb8 {[%clk 0:01:41.8]}
25. exd5 {[%clk 0:01:40.4]} 25... exd5 {[%clk 0:01:39.5]} 26. b3 {[%clk
0:01:37.9]} 26... Ra6 {[%clk 0:01:36.3]} 27. Rxd5 {[%clk 0:01:33]} 27... Rxa2
{[%clk 0:01:35.6]} 28. Rd8+ {[%clk 0:01:33.4]} 28... Rxd8 {[%clk 0:01:35.9]} 29.
Rxd8+ {[%clk 0:01:34.3]} 29... Kg7 {[%clk 0:01:36.3]} 30. c4 {[%clk 0:01:32.1]}
30... Rb2 {[%clk 0:01:34.8]} 31. Rb8 {[%clk 0:01:31.1]} 31... a5 {[%clk
0:01:31.2]} 32. Rb5 {[%clk 0:01:31.3]} 32... Ra2 {[%clk 0:01:29.4]} 33. c5
{[%clk 0:01:28]} 33... Kf6 {[%clk 0:01:29.5]} 34. c6 {[%clk 0:01:26]} 34... Rc2
{[%clk 0:01:24.9]} 35. Rb6 {[%clk 0:01:21.2]} 35... Ke5 {[%clk 0:01:24.2]} 36.
Kg2 {[%clk 0:01:19.4]} 36... f5 {[%clk 0:01:20.6]} 37. Kg3 {[%clk 0:01:12.5]}
37... Kd6 {[%clk 0:01:18.8]} 38. Ra6 {[%clk 0:01:06.2]} 38... g5 {[%clk
0:01:14]} 39. Rxa5 {[%clk 0:01:05.5]} 39... f4+ {[%clk 0:01:13.4]} 40. Kg2
{[%clk 0:01:02.2]} 40... h6 {[%clk 0:01:12.4]} 41. Ra6 {[%clk 0:01:01.8]} 41...
Kc7 {[%clk 0:01:04.3]} 42. Ra7+ {[%clk 0:00:50.2]} 42... Kxc6 {[%clk 0:01:02.9]}
43. Ra6+ {[%clk 0:00:50.4]} 43... Kd5 {[%clk 0:00:55]} 44. Rxh6 {[%clk
0:00:51.3]} 44... Ke5 {[%clk 0:00:54]} 45. b4 {[%clk 0:00:48.4]} 45... Rb2
{[%clk 0:00:53.6]} 46. Rb6 {[%clk 0:00:47.1]} 46... Kf5 {[%clk 0:00:49]} 47. Rb8
{[%clk 0:00:46.5]} 47... Ke6 {[%clk 0:00:41.2]} 48. b5 {[%clk 0:00:46.5]} 48...
Kd7 {[%clk 0:00:41.1]} 49. b6 {[%clk 0:00:46.8]} 49... Kc6 {[%clk 0:00:38.4]}
50. Rg8 {[%clk 0:00:40.6]} 50... Rb4 {[%clk 0:00:22]} 51. Rg6+ {[%clk 0:00:37]}
51... Kb7 {[%clk 0:00:20.1]} 52. Kh3 {[%clk 0:00:37]} 52... Rb2 {[%clk 0:00:19]}
53. Kg4 {[%clk 0:00:34.8]} 53... Rxf2 {[%clk 0:00:18.8]} 54. Kxg5 {[%clk
0:00:34.4]} 54... Rxf3 {[%clk 0:00:18.4]} 55. h4 {[%clk 0:00:26.9]} 55... Rg3+
{[%clk 0:00:18.5]} 56. Kxf4 {[%clk 0:00:14.2]} 56... Rxg6 {[%clk 0:00:18.4]} 57.
h5 {[%clk 0:00:14.8]} 57... Rxb6 {[%clk 0:00:18]} 58. Kg5 {[%clk 0:00:14.5]}
58... Kc7 {[%clk 0:00:17.9]} 59. h6 {[%clk 0:00:15.4]} 59... Rb1 {[%clk
0:00:15.9]} 60. h7 {[%clk 0:00:15.5]} 60... Rg1+ {[%clk 0:00:15.7]} 61. Kf6
{[%clk 0:00:15.9]} 61... Rh1 {[%clk 0:00:15.9]} 62. Kg7 {[%clk 0:00:16.5]} 62...
Kd7 {[%clk 0:00:16]} 63. h8=Q {[%clk 0:00:16.5]} 63... Rxh8 {[%clk 0:00:15]} 64.
Kxh8 {[%clk 0:00:17.4]} 1/2-1/2

[Event "Late-Titled-Tuesday-Blitz-October-24-2023"]
[Site "Chess.com"]
[Date "2023.10.24"]
[Round "7"]
[White "mind1mover"]
[Black "Maitreia"]
[Result "1-0"]
[WhiteElo "2803"]
[BlackElo "2637"]
[TimeControl "180+1"]
[EndTime "15:16:27 PDT"]
[Termination "mind1mover won by resignation"]

1. Nf3 {[%clk 0:03:00.9]} 1... c5 {[%clk 0:02:59.7]} 2. g3 {[%clk 0:03:00.9]}
2... Nc6 {[%clk 0:02:59.6]} 3. Bg2 {[%clk 0:03:01.5]} 3... g6 {[%clk 0:03:00.3]}
4. d4 {[%clk 0:02:59.8]} 4... cxd4 {[%clk 0:03:00]} 5. Nxd4 {[%clk 0:03:00.7]}
5... Nxd4 {[%clk 0:03:00.9]} 6. Qxd4 {[%clk 0:03:00.6]} 6... Nf6 {[%clk
0:03:00.9]} 7. O-O {[%clk 0:02:59.7]} 7... Bg7 {[%clk 0:03:01]} 8. c4 {[%clk
0:02:53.6]} 8... O-O {[%clk 0:03:00.9]} 9. Nc3 {[%clk 0:02:53.1]} 9... d6 {[%clk
0:03:01.5]} 10. Qd2 {[%clk 0:02:47.2]} 10... Be6 {[%clk 0:02:57.8]} 11. Bxb7
{[%clk 0:02:22.5]} 11... Rb8 {[%clk 0:02:57.8]} 12. Bg2 {[%clk 0:02:20.1]} 12...
Bxc4 {[%clk 0:02:57.6]} 13. b3 {[%clk 0:02:20.7]} 13... Be6 {[%clk 0:02:48.9]}
14. Bb2 {[%clk 0:02:21]} 14... Qa5 {[%clk 0:02:46.6]} 15. Rfd1 {[%clk 0:02:21]}
15... Rfc8 {[%clk 0:02:46.3]} 16. Rac1 {[%clk 0:02:19.2]} 16... h5 {[%clk
0:02:45]} 17. h3 {[%clk 0:02:00.3]} 17... Kh7 {[%clk 0:02:44.1]} 18. e3 {[%clk
0:01:59.7]} 18... d5 {[%clk 0:02:35.5]} 19. Nxd5 {[%clk 0:01:23.7]} 19... Qxd2
{[%clk 0:02:33.1]} 20. Nxf6+ {[%clk 0:01:24]} 20... Bxf6 {[%clk 0:02:28.2]} 21.
Rxd2 {[%clk 0:01:24.4]} 21... Rxc1+ {[%clk 0:01:43.4]} 22. Bxc1 {[%clk
0:01:25.3]} 22... h4 {[%clk 0:01:34.2]} 23. g4 {[%clk 0:01:22]} 23... Rc8 {[%clk
0:01:20.9]} 24. Bb2 {[%clk 0:01:21.1]} 24... Bxb2 {[%clk 0:01:19.1]} 25. Rxb2
{[%clk 0:01:22]} 25... Rc1+ {[%clk 0:01:14.8]} 26. Kh2 {[%clk 0:01:22.3]} 26...
a5 {[%clk 0:01:13.5]} 27. a3 {[%clk 0:00:53.1]} 27... Ra1 {[%clk 0:01:10]} 28.
b4 {[%clk 0:00:53.1]} 28... Rxa3 {[%clk 0:01:10.1]} 29. b5 {[%clk 0:00:53.7]}
29... Rc3 {[%clk 0:00:36.4]} 30. b6 {[%clk 0:00:50.3]} 30... Rc8 {[%clk
0:00:36.6]} 31. b7 {[%clk 0:00:50.7]} 31... Rb8 {[%clk 0:00:36.6]} 32. Rb5
{[%clk 0:00:51.3]} 32... a4 {[%clk 0:00:35.9]} 33. Ra5 {[%clk 0:00:51.6]} 33...
Bc8 {[%clk 0:00:15.4]} 34. bxc8=Q {[%clk 0:00:51.7]} 34... Rxc8 {[%clk
0:00:16.3]} 35. Rxa4 {[%clk 0:00:52]} 35... Rc2 {[%clk 0:00:16.8]} 36. Rf4
{[%clk 0:00:49.9]} 36... Kg7 {[%clk 0:00:16.2]} 37. Be4 {[%clk 0:00:44.5]} 37...
Rc4 {[%clk 0:00:15]} 38. Bf3 {[%clk 0:00:39.1]} 38... Rc2 {[%clk 0:00:15]} 39.
Kg2 {[%clk 0:00:37.6]} 39... g5 {[%clk 0:00:14]} 40. Rf5 {[%clk 0:00:37.2]}
40... f6 {[%clk 0:00:14]} 41. Rd5 {[%clk 0:00:36.2]} 41... Rb2 {[%clk
0:00:12.3]} 42. Rd7 {[%clk 0:00:36]} 42... Kf7 {[%clk 0:00:11.9]} 43. Bd5+
{[%clk 0:00:36]} 43... Ke8 {[%clk 0:00:10.6]} 44. Rb7 {[%clk 0:00:34]} 44... Rd2
{[%clk 0:00:09.5]} 45. Be6 {[%clk 0:00:31.6]} 45... Rd8 {[%clk 0:00:10]} 46. Rc7
{[%clk 0:00:29.8]} 46... Kf8 {[%clk 0:00:07.3]} 47. Rc8 {[%clk 0:00:30]} 47...
Rxc8 {[%clk 0:00:08.1]} 48. Bxc8 {[%clk 0:00:30.7]} 48... Kf7 {[%clk 0:00:08.7]}
49. Ba6 {[%clk 0:00:30.9]} 49... Ke6 {[%clk 0:00:07.8]} 50. Bc4+ {[%clk
0:00:31.8]} 50... Ke5 {[%clk 0:00:08.7]} 51. Kf3 {[%clk 0:00:32.3]} 51... e6
{[%clk 0:00:08.4]} 52. Bb3 {[%clk 0:00:33]} 52... f5 {[%clk 0:00:08.9]} 53. Bc2
{[%clk 0:00:33.4]} 53... Kf6 {[%clk 0:00:08.3]} 54. e4 {[%clk 0:00:34]} 54... f4
{[%clk 0:00:05.4]} 55. Ke2 {[%clk 0:00:34]} 55... Ke5 {[%clk 0:00:05.7]} 56. Kd3
{[%clk 0:00:34.6]} 56... f3 {[%clk 0:00:06]} 57. Ke3 {[%clk 0:00:34]} 57... Kd6
{[%clk 0:00:03.8]} 58. Kd4 {[%clk 0:00:34.4]} 58... e5+ {[%clk 0:00:04]} 59. Kc4
{[%clk 0:00:35]} 59... Kc6 {[%clk 0:00:04]} 60. Bd1 {[%clk 0:00:35.6]} 60... Kb6
{[%clk 0:00:03.7]} 61. Bxf3 {[%clk 0:00:36.1]} 61... Kc6 {[%clk 0:00:03.9]} 62.
Bd1 {[%clk 0:00:36.2]} 62... Kb6 {[%clk 0:00:04.2]} 63. f3 {[%clk 0:00:36.1]}
63... Ka5 {[%clk 0:00:04.3]} 64. Kd5 {[%clk 0:00:34.8]} 64... Kb4 {[%clk
0:00:05.2]} 65. Be2 {[%clk 0:00:35.4]} 65... Kc3 {[%clk 0:00:06.1]} 66. Kxe5
{[%clk 0:00:35]} 66... Kd2 {[%clk 0:00:07]} 67. Kf5 {[%clk 0:00:35.3]} 67...
Kxe2 {[%clk 0:00:06.7]} 68. e5 {[%clk 0:00:36.2]} 68... Kf2 {[%clk 0:00:05.8]}
69. e6 {[%clk 0:00:36.8]} 69... Kg3 {[%clk 0:00:06.7]} 70. e7 {[%clk 0:00:37]}
70... Kxh3 {[%clk 0:00:07.6]} 71. e8=Q {[%clk 0:00:37.4]} 71... Kg3 {[%clk
0:00:08.5]} 72. Kxg5 {[%clk 0:00:36.7]} 72... h3 {[%clk 0:00:09.4]} 73. Kf5
{[%clk 0:00:35.9]} 73... h2 {[%clk 0:00:10.3]} 74. Qe5+ {[%clk 0:00:35.6]} 74...
Kg2 {[%clk 0:00:11.2]} 75. Qxh2+ {[%clk 0:00:35.8]} 75... Kf1 {[%clk 0:00:10.4]}
76. g5 {[%clk 0:00:36.2]} 1-0

[Event "Late-Titled-Tuesday-Blitz-October-24-2023"]
[Site "Chess.com"]
[Date "2023.10.24"]
[Round "7"]
[White "Lion-Al-Messi"]
[Black "Mikedannnn"]
[Result "0-1"]
[WhiteElo "2648"]
[BlackElo "2573"]
[TimeControl "180+1"]
[EndTime "15:16:35 PDT"]
[Termination "Mikedannnn won on time"]

1. e4 {[%clk 0:03:00.9]} 1... c5 {[%clk 0:02:58.8]} 2. Nf3 {[%clk 0:03:01.2]}
2... e6 {[%clk 0:02:58.5]} 3. d4 {[%clk 0:03:01.7]} 3... cxd4 {[%clk 0:02:58]}
4. Nxd4 {[%clk 0:03:02.6]} 4... Nc6 {[%clk 0:02:57.8]} 5. Nc3 {[%clk 0:03:02.4]}
5... Qc7 {[%clk 0:02:58.1]} 6. Be3 {[%clk 0:03:02.3]} 6... a6 {[%clk 0:02:58.4]}
7. Qd2 {[%clk 0:03:02.2]} 7... Nf6 {[%clk 0:02:54.8]} 8. O-O-O {[%clk
0:02:59.5]} 8... b5 {[%clk 0:02:53.5]} 9. Bf4 {[%clk 0:02:56.9]} 9... Qb6 {[%clk
0:02:52.7]} 10. Nxc6 {[%clk 0:02:55.8]} 10... Qxc6 {[%clk 0:02:53.6]} 11. e5
{[%clk 0:02:53]} 11... b4 {[%clk 0:02:53.1]} 12. exf6 {[%clk 0:02:47.9]} 12...
bxc3 {[%clk 0:02:52.6]} 13. Qxc3 {[%clk 0:02:44.4]} 13... Qxc3 {[%clk
0:02:52.7]} 14. bxc3 {[%clk 0:02:45.3]} 14... gxf6 {[%clk 0:02:53.2]} 15. Be2
{[%clk 0:02:43.6]} 15... Bb7 {[%clk 0:02:53]} 16. Bh5 {[%clk 0:02:35.7]} 16...
Rc8 {[%clk 0:02:12.9]} 17. Rd3 {[%clk 0:02:33.1]} 17... Bxg2 {[%clk 0:02:09.3]}
18. Rhd1 {[%clk 0:02:31.9]} 18... Ba3+ {[%clk 0:01:45.3]} 19. Kb1 {[%clk
0:02:32.1]} 19... d5 {[%clk 0:01:40.3]} 20. c4 {[%clk 0:02:26.9]} 20... Bc5
{[%clk 0:01:35.6]} 21. cxd5 {[%clk 0:02:22.6]} 21... Bxd5 {[%clk 0:01:34.6]} 22.
Rxd5 {[%clk 0:02:18.8]} 22... exd5 {[%clk 0:01:34.2]} 23. Re1+ {[%clk
0:02:09.2]} 23... Kd8 {[%clk 0:01:29.5]} 24. Bxf7 {[%clk 0:02:06.1]} 24... Rc6
{[%clk 0:01:21.9]} 25. Bxd5 {[%clk 0:01:58.6]} 25... Rb6+ {[%clk 0:01:21.4]} 26.
Kc1 {[%clk 0:01:59.1]} 26... Ba3+ {[%clk 0:01:13.9]} 27. Kd2 {[%clk 0:01:57]}
27... Bb4+ {[%clk 0:01:12.6]} 28. c3 {[%clk 0:01:56.9]} 28... Bd6 {[%clk
0:01:13]} 29. Be3 {[%clk 0:01:53.7]} 29... Rb2+ {[%clk 0:01:13.1]} 30. Kd3
{[%clk 0:01:53.5]} 30... Kc7 {[%clk 0:01:03]} 31. Bb3 {[%clk 0:01:52.8]} 31...
Rd8 {[%clk 0:00:55.5]} 32. Kc4 {[%clk 0:01:51.9]} 32... Be5 {[%clk 0:00:50.8]}
33. Rg1 {[%clk 0:01:47.6]} 33... Kb8 {[%clk 0:00:43.3]} 34. h4 {[%clk
0:01:45.6]} 34... Rc8+ {[%clk 0:00:42.9]} 35. Kd5 {[%clk 0:01:42.9]} 35... Rxc3
{[%clk 0:00:38.5]} 36. h5 {[%clk 0:01:38]} 36... a5 {[%clk 0:00:36.2]} 37. h6
{[%clk 0:01:35.6]} 37... a4 {[%clk 0:00:35.6]} 38. Bxa4 {[%clk 0:01:24.3]} 38...
Rxa2 {[%clk 0:00:35.8]} 39. Bd7 {[%clk 0:01:15.2]} 39... Rd3+ {[%clk 0:00:31.9]}
40. Ke6 {[%clk 0:01:15.3]} 40... Ra6+ {[%clk 0:00:29.4]} 41. Ke7 {[%clk
0:01:15.1]} 41... Kc7 {[%clk 0:00:26.3]} 42. Rc1+ {[%clk 0:01:11]} 42... Rc3
{[%clk 0:00:25.9]} 43. Rd1 {[%clk 0:00:55.5]} 43... Bd6+ {[%clk 0:00:25.7]} 44.
Rxd6 {[%clk 0:00:39]} 44... Rxe3+ {[%clk 0:00:24.1]} 45. fxe3 {[%clk 0:00:33.8]}
45... Rxd6 {[%clk 0:00:24.5]} 46. Bf5 {[%clk 0:00:33.9]} 46... Rd1 {[%clk
0:00:14.9]} 47. Kxf6 {[%clk 0:00:33.5]} 47... Rh1 {[%clk 0:00:12.6]} 48. Kg7
{[%clk 0:00:33.2]} 48... Rg1+ {[%clk 0:00:09.7]} 49. Kxh7 {[%clk 0:00:25.8]}
49... Kd6 {[%clk 0:00:10.6]} 50. e4 {[%clk 0:00:24.5]} 50... Ke5 {[%clk
0:00:09.9]} 51. Bg6 {[%clk 0:00:24.6]} 51... Kf6 {[%clk 0:00:10.2]} 52. Bf5
{[%clk 0:00:19.6]} 52... Rh1 {[%clk 0:00:09.7]} 53. Bd7 {[%clk 0:00:06.5]} 53...
Rh4 {[%clk 0:00:09.1]} 54. Bc6 {[%clk 0:00:04]} 54... Rh2 {[%clk 0:00:07.6]} 55.
Bd5 {[%clk 0:00:02.8]} 55... Rh4 {[%clk 0:00:07.1]} 56. Bc6 {[%clk 0:00:01.8]}
56... Rh2 {[%clk 0:00:07.1]} 57. Bb7 {[%clk 0:00:01.8]} 57... Kg5 {[%clk
0:00:07.1]} 58. Kg7 {[%clk 0:00:01.5]} 58... Rxh6 {[%clk 0:00:07.6]} 59. Kf7
{[%clk 0:00:01.1]} 59... Rb6 {[%clk 0:00:08]} 0-1

[Event "Late-Titled-Tuesday-Blitz-October-24-2023"]
[Site "Chess.com"]
[Date "2023.10.24"]
[Round "7"]
[White "jcmesafischer"]
[Black "zverr1"]
[Result "1-0"]
[WhiteElo "2324"]
[BlackElo "2473"]
[TimeControl "180+1"]
[EndTime "15:16:35 PDT"]
[Termination "jcmesafischer won by checkmate"]

1. e4 {[%clk 0:03:00.9]} 1... c5 {[%clk 0:02:59.9]} 2. Nf3 {[%clk 0:03:00.5]}
2... g6 {[%clk 0:03:00.2]} 3. c3 {[%clk 0:02:59]} 3... Bg7 {[%clk 0:03:00.3]} 4.
d4 {[%clk 0:02:59.2]} 4... cxd4 {[%clk 0:03:01.2]} 5. cxd4 {[%clk 0:02:59.3]}
5... d5 {[%clk 0:03:01.9]} 6. e5 {[%clk 0:02:59.4]} 6... a6 {[%clk 0:03:02.2]}
7. Nc3 {[%clk 0:02:57.6]} 7... Nc6 {[%clk 0:03:02.9]} 8. Be3 {[%clk 0:02:57.1]}
8... Bg4 {[%clk 0:03:03.3]} 9. Be2 {[%clk 0:02:57]} 9... e6 {[%clk 0:03:03.2]}
10. Ng1 {[%clk 0:02:55.9]} 10... Bxe2 {[%clk 0:03:02.5]} 11. Ngxe2 {[%clk
0:02:56.4]} 11... Nge7 {[%clk 0:03:03.4]} 12. O-O {[%clk 0:02:56.4]} 12... O-O
{[%clk 0:03:04]} 13. Qd2 {[%clk 0:02:56.4]} 13... b5 {[%clk 0:03:03.5]} 14. a3
{[%clk 0:02:52.8]} 14... Na5 {[%clk 0:03:02.5]} 15. b4 {[%clk 0:02:48.2]} 15...
Nb3 {[%clk 0:03:01.3]} 16. Qd3 {[%clk 0:02:46.6]} 16... Nxa1 {[%clk 0:03:01.2]}
17. Rxa1 {[%clk 0:02:46.9]} 17... Rc8 {[%clk 0:03:02]} 18. Nc1 {[%clk
0:02:46.8]} 18... Qc7 {[%clk 0:03:00.7]} 19. Bd2 {[%clk 0:02:46.4]} 19... Qc4
{[%clk 0:02:58.3]} 20. Qxc4 {[%clk 0:02:42.1]} 20... dxc4 {[%clk 0:02:59.2]} 21.
N1e2 {[%clk 0:02:37.2]} 21... Rfd8 {[%clk 0:02:56.9]} 22. Be3 {[%clk 0:02:34.7]}
22... Nd5 {[%clk 0:02:53.6]} 23. Nxd5 {[%clk 0:02:33.9]} 23... Rxd5 {[%clk
0:02:51.3]} 24. Nc3 {[%clk 0:02:33.8]} 24... Rdd8 {[%clk 0:02:50.3]} 25. f4
{[%clk 0:02:33.5]} 25... Rd7 {[%clk 0:02:43.2]} 26. Kf2 {[%clk 0:02:32.5]} 26...
Rcd8 {[%clk 0:02:43.1]} 27. Kf3 {[%clk 0:02:18.2]} 27... g5 {[%clk 0:02:27]} 28.
fxg5 {[%clk 0:02:03.2]} 28... Rxd4 {[%clk 0:02:17.7]} 29. Bxd4 {[%clk
0:02:03.2]} 29... Rxd4 {[%clk 0:02:18.6]} 30. Rd1 {[%clk 0:02:01.9]} 30... Rxd1
{[%clk 0:02:09.3]} 31. Nxd1 {[%clk 0:02:02.8]} 31... Bxe5 {[%clk 0:02:10]} 32.
h4 {[%clk 0:01:45.4]} 32... f5 {[%clk 0:01:42.4]} 33. gxf6 {[%clk 0:01:42.8]}
33... Bxf6 {[%clk 0:01:42.6]} 34. g3 {[%clk 0:01:38.4]} 34... h5 {[%clk
0:01:40.7]} 35. Ne3 {[%clk 0:01:28.2]} 35... Bb2 {[%clk 0:01:24.3]} 36. Nc2
{[%clk 0:01:17.8]} 36... Kf7 {[%clk 0:01:14.9]} 37. g4 {[%clk 0:01:17.7]} 37...
hxg4+ {[%clk 0:01:09.5]} 38. Kxg4 {[%clk 0:01:18.6]} 38... Kg6 {[%clk
0:01:10.2]} 39. Kf4 {[%clk 0:01:01.2]} 39... Kh5 {[%clk 0:01:06.4]} 40. Kg3
{[%clk 0:01:00.3]} 40... e5 {[%clk 0:00:57.2]} 41. Kh3 {[%clk 0:00:51.2]} 41...
Kg6 {[%clk 0:00:49.6]} 42. Kg4 {[%clk 0:00:51.1]} 42... Kf6 {[%clk 0:00:49.9]}
43. h5 {[%clk 0:00:49.1]} 43... Bc1 {[%clk 0:00:49.9]} 44. Kf3 {[%clk
0:00:40.5]} 44... Kg5 {[%clk 0:00:43]} 45. Ke4 {[%clk 0:00:38.5]} 45... Bb2
{[%clk 0:00:42.9]} 46. Kd5 {[%clk 0:00:30]} 46... Kxh5 {[%clk 0:00:41.1]} 47.
Kc6 {[%clk 0:00:30.2]} 47... Kg4 {[%clk 0:00:37.1]} 48. Kb6 {[%clk 0:00:30.1]}
48... e4 {[%clk 0:00:34.5]} 49. Kxa6 {[%clk 0:00:29.8]} 49... Kf3 {[%clk
0:00:08]} 50. Kxb5 {[%clk 0:00:29.3]} 50... Bxa3 {[%clk 0:00:04.4]} 51. Nxa3
{[%clk 0:00:23.7]} 51... c3 {[%clk 0:00:04.7]} 52. Kc4 {[%clk 0:00:23.6]} 52...
e3 {[%clk 0:00:01.5]} 53. Kxc3 {[%clk 0:00:22.9]} 53... e2 {[%clk 0:00:01.6]}
54. Nc2 {[%clk 0:00:23.1]} 54... Ke4 {[%clk 0:00:02.3]} 55. Kc4 {[%clk
0:00:22.7]} 55... Ke5 {[%clk 0:00:02.6]} 56. Kc5 {[%clk 0:00:23.1]} 56... Ke4
{[%clk 0:00:02.4]} 57. b5 {[%clk 0:00:23.2]} 57... Kd3 {[%clk 0:00:03.1]} 58.
Ne1+ {[%clk 0:00:23.2]} 58... Kd2 {[%clk 0:00:03.7]} 59. Ng2 {[%clk 0:00:23.6]}
59... Kd3 {[%clk 0:00:03.4]} 60. b6 {[%clk 0:00:23.6]} 60... Ke4 {[%clk
0:00:04.2]} 61. b7 {[%clk 0:00:22.4]} 61... Kf3 {[%clk 0:00:05.1]} 62. Ne1+
{[%clk 0:00:22.2]} 62... Ke3 {[%clk 0:00:04.4]} 63. b8=Q {[%clk 0:00:21.2]}
63... Kd2 {[%clk 0:00:05]} 64. Qb4+ {[%clk 0:00:20.4]} 64... Kd1 {[%clk
0:00:05.6]} 65. Kd4 {[%clk 0:00:16.7]} 65... Kc1 {[%clk 0:00:03.9]} 66. Kd3
{[%clk 0:00:16.2]} 66... Kd1 {[%clk 0:00:02.9]} 67. Qb1# {[%clk 0:00:17.1]} 1-0